[Event "*** Titled Tuesday Blitz"]
[Site "Chess.com"]
[Date "2020.10.27"]
[Round "2"]
[White "RobPeresian"]
[Black "Euge_chess"]
[Result "1-0"]
[WhiteElo "2415"]
[BlackElo "2098"]
[TimeControl "180+1"]
[EndTime "10:17:30 PDT"]
[Termination "RobPeresian won on time"]

1. Nf3 {[%clk 0:02:57.6]} 1... Nf6 {[%clk 0:02:58.7]} 2. c4 {[%clk 0:02:57.5]}
2... e6 {[%clk 0:02:57.9]} 3. Nc3 {[%clk 0:02:57.5]} 3... d5 {[%clk 0:02:56]} 4.
d4 {[%clk 0:02:56.5]} 4... c5 {[%clk 0:02:45.1]} 5. cxd5 {[%clk 0:02:53.9]} 5...
Nxd5 {[%clk 0:02:42.4]} 6. e4 {[%clk 0:02:53.2]} 6... Nxc3 {[%clk 0:02:38.4]} 7.
bxc3 {[%clk 0:02:54.1]} 7... Nc6 {[%clk 0:02:32.1]} 8. d5 {[%clk 0:02:50.3]}
8... Ne7 {[%clk 0:02:19.1]} 9. Bb5+ {[%clk 0:02:36.6]} 9... Bd7 {[%clk
0:02:12.2]} 10. Bxd7+ {[%clk 0:02:32.7]} 10... Qxd7 {[%clk 0:02:10.1]} 11. c4
{[%clk 0:02:32.5]} 11... b5 {[%clk 0:02:01.2]} 12. O-O {[%clk 0:02:20.4]} 12...
bxc4 {[%clk 0:01:57.6]} 13. Ne5 {[%clk 0:02:20.1]} 13... Qd6 {[%clk 0:01:52.5]}
14. Qa4+ {[%clk 0:02:16.5]} 14... Nc6 {[%clk 0:01:33]} 15. Nxc4 {[%clk
0:02:08.3]} 15... Qc7 {[%clk 0:01:11.8]} 16. Bf4 {[%clk 0:01:58.5]} 16... Qc8
{[%clk 0:00:57.4]} 17. dxc6 {[%clk 0:01:54.7]} 17... f6 {[%clk 0:00:51.1]} 18.
Rfd1 {[%clk 0:01:47.2]} 18... e5 {[%clk 0:00:48.3]} 19. c7+ {[%clk 0:01:41]}
19... Kf7 {[%clk 0:00:45.2]} 20. Rd7+ {[%clk 0:01:34.2]} 20... Kg6 {[%clk
0:00:37.8]} 21. Bxe5 {[%clk 0:01:31.2]} 21... fxe5 {[%clk 0:00:18.3]} 22. Qc6+
{[%clk 0:01:25.6]} 22... Kh5 {[%clk 0:00:18.2]} 23. g4+ {[%clk 0:01:18.9]} 23...
Kh4 {[%clk 0:00:15.3]} 24. Nxe5 {[%clk 0:01:13.6]} 24... Qe8 {[%clk 0:00:11.5]}
25. Nf3+ {[%clk 0:01:08.3]} 25... Kh3 {[%clk 0:00:09.4]} 26. Qd5 {[%clk
0:00:36.2]} 26... Be7 {[%clk 0:00:09.2]} 27. g5 {[%clk 0:00:27.6]} 27... Rf8
{[%clk 0:00:02.9]} 28. Qe6+ {[%clk 0:00:24.8]} 1-0

[Event "*** Titled Tuesday Blitz"]
[Site "Chess.com"]
[Date "2020.10.27"]
[Round "2"]
[White "kreonx"]
[Black "Gloomy_Wanderer"]
[Result "0-1"]
[WhiteElo "2352"]
[BlackElo "2703"]
[TimeControl "180+1"]
[EndTime "10:17:31 PDT"]
[Termination "Gloomy_Wanderer won on time"]

1. e4 {[%clk 0:03:00.9]} 1... c5 {[%clk 0:02:59.3]} 2. Nc3 {[%clk 0:02:59.8]}
2... a6 {[%clk 0:02:57.3]} 3. a4 {[%clk 0:02:58.1]} 3... g6 {[%clk 0:02:56.3]}
4. f4 {[%clk 0:02:57.5]} 4... Nc6 {[%clk 0:02:55.6]} 5. Nf3 {[%clk 0:02:56.9]}
5... Bg7 {[%clk 0:02:55.8]} 6. Bc4 {[%clk 0:02:56.4]} 6... e6 {[%clk 0:02:55.5]}
7. d3 {[%clk 0:02:55.1]} 7... Nge7 {[%clk 0:02:55.5]} 8. O-O {[%clk 0:02:53.5]}
8... d5 {[%clk 0:02:55.3]} 9. Ba2 {[%clk 0:02:49]} 9... O-O {[%clk 0:02:54.4]}
10. Qe1 {[%clk 0:02:48.1]} 10... Nd4 {[%clk 0:02:50.1]} 11. Nxd4 {[%clk
0:02:44.4]} 11... cxd4 {[%clk 0:02:50.1]} 12. Ne2 {[%clk 0:02:42.9]} 12... dxe4
{[%clk 0:02:43.5]} 13. dxe4 {[%clk 0:02:41.9]} 13... Nc6 {[%clk 0:02:44.4]} 14.
Bd2 {[%clk 0:02:30.4]} 14... d3 {[%clk 0:02:35.4]} 15. cxd3 {[%clk 0:02:26.4]}
15... Qxd3 {[%clk 0:02:32.6]} 16. Rd1 {[%clk 0:02:17.1]} 16... Qxe4 {[%clk
0:02:27.3]} 17. Nc3 {[%clk 0:01:47.9]} 17... Qxe1 {[%clk 0:02:23.8]} 18. Rfxe1
{[%clk 0:01:45.6]} 18... Rd8 {[%clk 0:02:14.3]} 19. Be3 {[%clk 0:01:34.9]} 19...
Bd4 {[%clk 0:01:19.6]} 20. Bxd4 {[%clk 0:01:26.9]} 20... Rxd4 {[%clk 0:01:19.6]}
21. Rxd4 {[%clk 0:01:18.6]} 21... Nxd4 {[%clk 0:01:20.5]} 22. Rd1 {[%clk
0:01:17.6]} 22... Nc6 {[%clk 0:01:20.5]} 23. Ne4 {[%clk 0:01:13.5]} 23... Kf8
{[%clk 0:01:19.7]} 24. Nc5 {[%clk 0:01:06.4]} 24... Ke7 {[%clk 0:01:18.8]} 25.
Kf2 {[%clk 0:00:59.7]} 25... b6 {[%clk 0:01:18]} 26. Ne4 {[%clk 0:00:54.7]}
26... Bb7 {[%clk 0:01:17.2]} 27. Bb1 {[%clk 0:00:43.7]} 27... Rd8 {[%clk
0:01:15.2]} 28. Rxd8 {[%clk 0:00:41.5]} 28... Nxd8 {[%clk 0:01:16.1]} 29. g4
{[%clk 0:00:36.9]} 29... f5 {[%clk 0:01:13]} 30. gxf5 {[%clk 0:00:34.1]} 30...
exf5 {[%clk 0:01:12.9]} 31. Ng5 {[%clk 0:00:31.5]} 31... h6 {[%clk 0:01:12.3]}
32. Nf3 {[%clk 0:00:31.1]} 32... Ne6 {[%clk 0:01:12.2]} 33. Ke3 {[%clk
0:00:27.1]} 33... Bxf3 {[%clk 0:01:11]} 34. Kxf3 {[%clk 0:00:26.4]} 34... Kd6
{[%clk 0:01:11.9]} 35. Bd3 {[%clk 0:00:23.2]} 35... a5 {[%clk 0:01:10.6]} 36.
Ke3 {[%clk 0:00:21.3]} 36... Nc7 {[%clk 0:01:05.3]} 37. Kd4 {[%clk 0:00:16.7]}
37... Nd5 {[%clk 0:01:04.4]} 38. b3 {[%clk 0:00:03.9]} 38... Nxf4 {[%clk
0:01:04.1]} 39. Bf1 {[%clk 0:00:02.8]} 39... Ne6+ {[%clk 0:01:03.6]} 40. Kc4
{[%clk 0:00:02.2]} 40... f4 {[%clk 0:01:01.8]} 41. Kb5 {[%clk 0:00:01.3]} 41...
Kc7 {[%clk 0:01:01.6]} 0-1

[Event "*** Titled Tuesday Blitz"]
[Site "Chess.com"]
[Date "2020.10.27"]
[Round "2"]
[White "keepitcoming"]
[Black "BanjoKazooieN64"]
[Result "0-1"]
[WhiteElo "2569"]
[BlackElo "2335"]
[TimeControl "180+1"]
[EndTime "10:17:31 PDT"]
[Termination "BanjoKazooieN64 won on time"]

1. d4 {[%clk 0:03:00.9]} 1... Nf6 {[%clk 0:02:57.1]} 2. c4 {[%clk 0:03:01]} 2...
g6 {[%clk 0:02:57.3]} 3. Nc3 {[%clk 0:03:01.1]} 3... Bg7 {[%clk 0:02:57.6]} 4.
e4 {[%clk 0:03:01]} 4... d6 {[%clk 0:02:58.1]} 5. f3 {[%clk 0:03:00.6]} 5... O-O
{[%clk 0:02:57.8]} 6. Nge2 {[%clk 0:03:00.6]} 6... e5 {[%clk 0:02:56.5]} 7. d5
{[%clk 0:02:59.9]} 7... c5 {[%clk 0:02:53.7]} 8. Be3 {[%clk 0:02:57.8]} 8... Nh5
{[%clk 0:02:51.3]} 9. g4 {[%clk 0:02:36.8]} 9... Nf4 {[%clk 0:02:49.6]} 10. Nxf4
{[%clk 0:02:32.4]} 10... exf4 {[%clk 0:02:48.9]} 11. Bxf4 {[%clk 0:02:33.3]}
11... f5 {[%clk 0:02:39.7]} 12. gxf5 {[%clk 0:02:24.1]} 12... gxf5 {[%clk
0:02:39.9]} 13. Qd2 {[%clk 0:02:19.1]} 13... fxe4 {[%clk 0:02:34.8]} 14. Nxe4
{[%clk 0:02:06]} 14... Qh4+ {[%clk 0:01:53]} 15. Bg3 {[%clk 0:01:53.6]} 15...
Qh5 {[%clk 0:01:52.9]} 16. Be2 {[%clk 0:01:38]} 16... Rxf3 {[%clk 0:01:08.7]}
17. Bxf3 {[%clk 0:01:10.8]} 17... Qxf3 {[%clk 0:01:08.4]} 18. Nf2 {[%clk
0:01:04.1]} 18... Bf5 {[%clk 0:00:39.2]} 19. O-O {[%clk 0:00:47.7]} 19... Bd4
{[%clk 0:00:31.3]} 20. Qf4 {[%clk 0:00:25]} 20... Qh5 {[%clk 0:00:19.3]} 21.
Rae1 {[%clk 0:00:20.3]} 21... Nd7 {[%clk 0:00:18.5]} 22. Qxd6 {[%clk 0:00:14.7]}
22... Nf6 {[%clk 0:00:16.9]} 23. Be5 {[%clk 0:00:10.4]} 23... Ng4 {[%clk
0:00:13.9]} 24. Bg3 {[%clk 0:00:01.8]} 24... Rf8 {[%clk 0:00:09.7]} 0-1

[Event "*** Titled Tuesday Blitz"]
[Site "Chess.com"]
[Date "2020.10.27"]
[Round "2"]
[White "Chernobay_Artem"]
[Black "Msb2"]
[Result "0-1"]
[WhiteElo "2597"]
[BlackElo "2917"]
[TimeControl "180+1"]
[EndTime "10:17:32 PDT"]
[Termination "Msb2 won on time"]

1. e4 {[%clk 0:03:00.9]} 1... e6 {[%clk 0:03:00.4]} 2. d4 {[%clk 0:03:01]} 2...
d5 {[%clk 0:03:00.7]} 3. Nc3 {[%clk 0:03:01.7]} 3... Nf6 {[%clk 0:03:01]} 4. Bg5
{[%clk 0:03:01.7]} 4... dxe4 {[%clk 0:03:01.2]} 5. Nxe4 {[%clk 0:03:01.7]} 5...
Be7 {[%clk 0:03:01.8]} 6. Bxf6 {[%clk 0:03:02]} 6... gxf6 {[%clk 0:03:02.5]} 7.
Qd2 {[%clk 0:03:02.3]} 7... c5 {[%clk 0:03:02.5]} 8. Nxc5 {[%clk 0:02:59]} 8...
Bxc5 {[%clk 0:03:02.3]} 9. dxc5 {[%clk 0:02:59.5]} 9... Qxd2+ {[%clk 0:03:03.2]}
10. Kxd2 {[%clk 0:03:00.2]} 10... Ke7 {[%clk 0:03:04.1]} 11. c3 {[%clk
0:02:52.6]} 11... Rd8+ {[%clk 0:03:02.7]} 12. Kc2 {[%clk 0:02:52.8]} 12... Nd7
{[%clk 0:03:03.2]} 13. b4 {[%clk 0:02:51.5]} 13... a5 {[%clk 0:03:02.2]} 14. Bb5
{[%clk 0:02:43.1]} 14... b6 {[%clk 0:02:35.4]} 15. c6 {[%clk 0:02:36.6]} 15...
Ne5 {[%clk 0:02:34.4]} 16. Nf3 {[%clk 0:02:33.5]} 16... Nxf3 {[%clk 0:02:07.3]}
17. gxf3 {[%clk 0:02:34.4]} 17... axb4 {[%clk 0:02:08.2]} 18. cxb4 {[%clk
0:02:34.1]} 18... Ra3 {[%clk 0:02:08.9]} 19. Rhd1 {[%clk 0:02:09.1]} 19... Rxf3
{[%clk 0:01:55.8]} 20. Rxd8 {[%clk 0:00:54.5]} 20... Kxd8 {[%clk 0:01:56.7]} 21.
a4 {[%clk 0:00:51.5]} 21... Rxf2+ {[%clk 0:01:55.7]} 22. Kc3 {[%clk 0:00:52]}
22... Kc7 {[%clk 0:01:44.5]} 23. a5 {[%clk 0:00:46.5]} 23... bxa5 {[%clk
0:01:45.4]} 24. bxa5 {[%clk 0:00:46.4]} 24... Kb8 {[%clk 0:01:19.6]} 25. a6
{[%clk 0:00:43]} 25... Ka7 {[%clk 0:01:19.9]} 26. Rd1 {[%clk 0:00:40.1]} 26...
Kb6 {[%clk 0:00:55]} 27. Rd8 {[%clk 0:00:18.3]} 27... Kxb5 {[%clk 0:00:50.8]}
28. a7 {[%clk 0:00:15.4]} 28... Ra2 {[%clk 0:00:50.5]} 29. Rxc8 {[%clk
0:00:13.3]} 29... Rxa7 {[%clk 0:00:50.5]} 30. Rh8 {[%clk 0:00:04.3]} 30... Kxc6
{[%clk 0:00:50.4]} 31. Rxh7 {[%clk 0:00:04.8]} 31... Kd5 {[%clk 0:00:51]} 32. h4
{[%clk 0:00:04.5]} 32... f5 {[%clk 0:00:48.6]} 33. h5 {[%clk 0:00:03.9]} 33...
Ra3+ {[%clk 0:00:48.7]} 34. Kb4 {[%clk 0:00:03.7]} 34... Rh3 {[%clk 0:00:49.6]}
35. Kb5 {[%clk 0:00:01.8]} 35... e5 {[%clk 0:00:42.7]} 36. h6 {[%clk 0:00:01.3]}
36... f4 {[%clk 0:00:42.9]} 37. Rh8 {[%clk 0:00:01.1]} 37... Ke4 {[%clk
0:00:43]} 0-1

[Event "*** Titled Tuesday Blitz"]
[Site "Chess.com"]
[Date "2020.10.27"]
[Round "2"]
[White "MIJuanReyesRosa"]
[Black "WildTricks"]
[Result "0-1"]
[WhiteElo "2074"]
[BlackElo "2411"]
[TimeControl "180+1"]
[EndTime "10:17:35 PDT"]
[Termination "WildTricks won on time"]

1. d4 {[%clk 0:03:00.9]} 1... g6 {[%clk 0:02:58.2]} 2. e4 {[%clk 0:02:59.7]}
2... Bh6 {[%clk 0:02:58]} 3. f4 {[%clk 0:02:44.5]} 3... d6 {[%clk 0:02:55.4]} 4.
Nc3 {[%clk 0:02:40.9]} 4... e5 {[%clk 0:02:55.1]} 5. dxe5 {[%clk 0:02:37.8]}
5... dxe5 {[%clk 0:02:55.1]} 6. Qxd8+ {[%clk 0:02:36]} 6... Kxd8 {[%clk
0:02:56]} 7. Bc4 {[%clk 0:02:27.4]} 7... Be6 {[%clk 0:02:30.9]} 8. Bxe6 {[%clk
0:02:23]} 8... fxe6 {[%clk 0:02:31.8]} 9. fxe5 {[%clk 0:02:18.4]} 9... Bxc1
{[%clk 0:02:29]} 10. Rxc1 {[%clk 0:02:18.2]} 10... Nc6 {[%clk 0:02:23.5]} 11.
Rd1+ {[%clk 0:02:14.8]} 11... Ke7 {[%clk 0:02:22.4]} 12. Nf3 {[%clk 0:02:11.4]}
12... Nh6 {[%clk 0:02:22.2]} 13. O-O {[%clk 0:01:52.7]} 13... Ng4 {[%clk
0:02:20.2]} 14. Nb5 {[%clk 0:01:30.8]} 14... Rac8 {[%clk 0:02:17.3]} 15. Rd3
{[%clk 0:01:16.9]} 15... a6 {[%clk 0:02:14.6]} 16. Nbd4 {[%clk 0:00:52.8]} 16...
Ncxe5 {[%clk 0:02:12.6]} 17. Nxe5 {[%clk 0:00:50.3]} 17... Nxe5 {[%clk
0:02:11.4]} 18. Rb3 {[%clk 0:00:48.9]} 18... b5 {[%clk 0:02:10.5]} 19. a4 {[%clk
0:00:43.6]} 19... c5 {[%clk 0:02:09.4]} 20. Nf3 {[%clk 0:00:38.4]} 20... c4
{[%clk 0:02:06.4]} 21. Re3 {[%clk 0:00:26.6]} 21... Nc6 {[%clk 0:01:53.9]} 22.
axb5 {[%clk 0:00:25.2]} 22... axb5 {[%clk 0:01:54.8]} 23. e5 {[%clk 0:00:20.5]}
23... Rhf8 {[%clk 0:01:52.6]} 24. c3 {[%clk 0:00:19.3]} 24... Rf5 {[%clk
0:01:50]} 25. Rfe1 {[%clk 0:00:17.9]} 25... Ra8 {[%clk 0:01:42.5]} 26. g4 {[%clk
0:00:14.1]} 26... Rf4 {[%clk 0:01:40.4]} 27. h3 {[%clk 0:00:10.8]} 27... Ra2
{[%clk 0:01:38.9]} 28. R1e2 {[%clk 0:00:10.8]} 28... h5 {[%clk 0:01:33.6]} 29.
gxh5 {[%clk 0:00:09.5]} 29... gxh5 {[%clk 0:01:34.5]} 30. Kg2 {[%clk 0:00:09.4]}
30... Rf5 {[%clk 0:01:01.9]} 31. Kg3 {[%clk 0:00:07.7]} 31... Kf7 {[%clk
0:00:57.7]} 32. Nh4 {[%clk 0:00:07.2]} 32... Rg5+ {[%clk 0:00:51.6]} 33. Kf4
{[%clk 0:00:05.7]} 33... Rg1 {[%clk 0:00:51.4]} 34. Nf3 {[%clk 0:00:04.8]} 34...
Rb1 {[%clk 0:00:49.1]} 35. Ng5+ {[%clk 0:00:04.1]} 35... Ke7 {[%clk 0:00:48.9]}
36. Ke4 {[%clk 0:00:03.5]} 36... Rbxb2 {[%clk 0:00:48.6]} 37. Rxb2 {[%clk
0:00:03.3]} 37... Rxb2 {[%clk 0:00:49.5]} 38. Nf3 {[%clk 0:00:02.4]} 38... Rc2
{[%clk 0:00:46.9]} 39. Ng5 {[%clk 0:00:02.2]} 39... Rh2 {[%clk 0:00:44.4]} 0-1

[Event "*** Titled Tuesday Blitz"]
[Site "Chess.com"]
[Date "2020.10.27"]
[Round "2"]
[White "enriquetejedor"]
[Black "MVM2008"]
[Result "1-0"]
[WhiteElo "2457"]
[BlackElo "2216"]
[TimeControl "180+1"]
[EndTime "10:17:37 PDT"]
[Termination "enriquetejedor won by resignation"]

1. e4 {[%clk 0:02:49.3]} 1... e5 {[%clk 0:02:58.5]} 2. Nf3 {[%clk 0:02:47.8]}
2... Nc6 {[%clk 0:02:58.6]} 3. Bc4 {[%clk 0:02:43.9]} 3... Nf6 {[%clk
0:02:55.6]} 4. d3 {[%clk 0:02:36.9]} 4... Bc5 {[%clk 0:02:55.2]} 5. c3 {[%clk
0:02:21.2]} 5... O-O {[%clk 0:02:54.8]} 6. b4 {[%clk 0:02:21.2]} 6... Bb6 {[%clk
0:02:54]} 7. a4 {[%clk 0:02:21.3]} 7... a6 {[%clk 0:02:53.3]} 8. O-O {[%clk
0:02:20]} 8... d5 {[%clk 0:02:50.7]} 9. exd5 {[%clk 0:02:20.9]} 9... Nxd5 {[%clk
0:02:51.2]} 10. Re1 {[%clk 0:02:19]} 10... Be6 {[%clk 0:02:42.5]} 11. Ra2 {[%clk
0:02:13.4]} 11... f6 {[%clk 0:02:18.5]} 12. d4 {[%clk 0:01:49.8]} 12... Kh8
{[%clk 0:02:17.3]} 13. dxe5 {[%clk 0:01:43.9]} 13... fxe5 {[%clk 0:02:15.1]} 14.
Bg5 {[%clk 0:01:31.7]} 14... Qd6 {[%clk 0:01:53]} 15. Rd2 {[%clk 0:01:19.7]}
15... h6 {[%clk 0:01:08.9]} 16. Bxd5 {[%clk 0:00:45]} 16... hxg5 {[%clk
0:01:02.6]} 17. Nxg5 {[%clk 0:00:42.5]} 17... Bxd5 {[%clk 0:00:56.3]} 18. Rxd5
{[%clk 0:00:34.8]} 18... Bxf2+ {[%clk 0:00:55.7]} 19. Kh1 {[%clk 0:00:32.7]}
19... Bxe1 {[%clk 0:00:50.3]} 20. Qxe1 {[%clk 0:00:17.1]} 20... Qh6 {[%clk
0:00:33.1]} 21. Nf3 {[%clk 0:00:16.2]} 21... Rad8 {[%clk 0:00:29.8]} 22. Rxd8
{[%clk 0:00:14.5]} 22... Rxd8 {[%clk 0:00:30.7]} 23. Nbd2 {[%clk 0:00:14.5]}
23... Qg6 {[%clk 0:00:18.9]} 24. b5 {[%clk 0:00:11.8]} 24... axb5 {[%clk
0:00:18.6]} 25. axb5 {[%clk 0:00:11.8]} 25... Na5 {[%clk 0:00:09.3]} 26. Qh4+
{[%clk 0:00:10.9]} 1-0

[Event "*** Titled Tuesday Blitz"]
[Site "Chess.com"]
[Date "2020.10.27"]
[Round "2"]
[White "PavelChernomordik"]
[Black "Benjoneliere44"]
[Result "0-1"]
[WhiteElo "2291"]
[BlackElo "2672"]
[TimeControl "180+1"]
[EndTime "10:17:42 PDT"]
[Termination "Benjoneliere44 won on time"]

1. e4 {[%clk 0:03:00.9]} 1... c5 {[%clk 0:02:57.9]} 2. Nc3 {[%clk 0:02:58]} 2...
Nc6 {[%clk 0:02:56.5]} 3. Bb5 {[%clk 0:02:55.5]} 3... Nd4 {[%clk 0:02:54.7]} 4.
Bc4 {[%clk 0:02:54]} 4... g6 {[%clk 0:02:54.5]} 5. Nge2 {[%clk 0:02:50.6]} 5...
Bg7 {[%clk 0:02:53.9]} 6. Nxd4 {[%clk 0:02:49.9]} 6... cxd4 {[%clk 0:02:54.4]}
7. Qf3 {[%clk 0:02:49]} 7... Nh6 {[%clk 0:02:54.4]} 8. Ne2 {[%clk 0:02:45.9]}
8... O-O {[%clk 0:02:54.4]} 9. h3 {[%clk 0:02:44.1]} 9... e6 {[%clk 0:02:45.4]}
10. g4 {[%clk 0:02:36.2]} 10... Kh8 {[%clk 0:02:37.1]} 11. d3 {[%clk 0:02:31.6]}
11... f5 {[%clk 0:02:29.3]} 12. exf5 {[%clk 0:02:21.7]} 12... exf5 {[%clk
0:02:12.4]} 13. Qg2 {[%clk 0:02:01.1]} 13... d5 {[%clk 0:01:52.1]} 14. Qxd5
{[%clk 0:01:56.5]} 14... Qxd5 {[%clk 0:01:46.2]} 15. Bxd5 {[%clk 0:01:55.2]}
15... fxg4 {[%clk 0:01:46.6]} 16. hxg4 {[%clk 0:01:52.8]} 16... Nxg4 {[%clk
0:01:44.5]} 17. Nf4 {[%clk 0:01:48.7]} 17... Bf5 {[%clk 0:01:39.1]} 18. Bd2
{[%clk 0:01:36.6]} 18... Rae8+ {[%clk 0:01:35.6]} 19. Kf1 {[%clk 0:01:36.1]}
19... g5 {[%clk 0:01:31.3]} 20. Nh3 {[%clk 0:01:28.2]} 20... h6 {[%clk
0:01:20.6]} 21. Bxb7 {[%clk 0:01:15.1]} 21... Kg8 {[%clk 0:01:16.6]} 22. Bd5+
{[%clk 0:01:12.1]} 22... Be6 {[%clk 0:01:16.7]} 23. Bxe6+ {[%clk 0:01:10.6]}
23... Rxe6 {[%clk 0:01:17.6]} 24. Re1 {[%clk 0:00:57.8]} 24... Rc6 {[%clk
0:01:13.6]} 25. Rc1 {[%clk 0:00:51.6]} 25... Ne3+ {[%clk 0:01:09.2]} 26. Kg1
{[%clk 0:00:49.1]} 26... Nxc2 {[%clk 0:01:00.2]} 27. Kg2 {[%clk 0:00:46.6]}
27... Rfc8 {[%clk 0:00:58.4]} 28. f4 {[%clk 0:00:38.4]} 28... Ne3+ {[%clk
0:00:52.2]} 29. Kf3 {[%clk 0:00:30.6]} 29... g4+ {[%clk 0:00:50.7]} 30. Kg3
{[%clk 0:00:17]} 30... Rxc1 {[%clk 0:00:47.4]} 31. Rxc1 {[%clk 0:00:10.8]} 31...
Rxc1 {[%clk 0:00:45.9]} 32. Bxc1 {[%clk 0:00:09.6]} 32... gxh3 {[%clk
0:00:45.8]} 33. Kxh3 {[%clk 0:00:08.7]} 33... Kf7 {[%clk 0:00:43.5]} 34. Kg3
{[%clk 0:00:07.3]} 34... Ke6 {[%clk 0:00:41.3]} 35. Kf3 {[%clk 0:00:07.5]} 35...
Kf5 {[%clk 0:00:40.3]} 36. b4 {[%clk 0:00:05.1]} 36... Nd5 {[%clk 0:00:39.9]}
37. b5 {[%clk 0:00:04.1]} 37... h5 {[%clk 0:00:39]} 38. a4 {[%clk 0:00:01.3]}
38... Bf8 {[%clk 0:00:39]} 0-1

[Event "*** Titled Tuesday Blitz"]
[Site "Chess.com"]
[Date "2020.10.27"]
[Round "2"]
[White "sokidze"]
[Black "Sueetin"]
[Result "1-0"]
[WhiteElo "2629"]
[BlackElo "2333"]
[TimeControl "180+1"]
[EndTime "10:17:43 PDT"]
[Termination "sokidze won by resignation"]

1. e4 {[%clk 0:03:00.9]} 1... e6 {[%clk 0:03:00.3]} 2. d4 {[%clk 0:03:00.1]}
2... d5 {[%clk 0:03:01]} 3. Nd2 {[%clk 0:03:00.7]} 3... c5 {[%clk 0:03:00.4]} 4.
exd5 {[%clk 0:02:59.8]} 4... Qxd5 {[%clk 0:03:01.3]} 5. Ngf3 {[%clk 0:02:59.3]}
5... cxd4 {[%clk 0:03:01.9]} 6. Bc4 {[%clk 0:02:59.8]} 6... Qd7 {[%clk
0:03:02.5]} 7. O-O {[%clk 0:02:59.8]} 7... Nc6 {[%clk 0:03:01.3]} 8. Qe2 {[%clk
0:02:59.8]} 8... Nf6 {[%clk 0:02:57.7]} 9. Rd1 {[%clk 0:03:00.2]} 9... Bd6
{[%clk 0:02:57.3]} 10. Nb3 {[%clk 0:02:57.4]} 10... e5 {[%clk 0:02:55.4]} 11.
Nbxd4 {[%clk 0:02:42.2]} 11... O-O {[%clk 0:02:53.5]} 12. Nb5 {[%clk 0:02:40.1]}
12... Ne8 {[%clk 0:02:13.8]} 13. Qd2 {[%clk 0:02:11.2]} 13... e4 {[%clk
0:01:32.9]} 14. Ne1 {[%clk 0:02:07]} 14... Bxh2+ {[%clk 0:01:09.8]} 15. Kxh2
{[%clk 0:02:05.3]} 15... Qg4 {[%clk 0:01:04.9]} 16. Be2 {[%clk 0:01:46.9]} 16...
Qh4+ {[%clk 0:01:01.2]} 17. Kg1 {[%clk 0:01:47.2]} 17... Bg4 {[%clk 0:00:46.7]}
18. Qf4 {[%clk 0:01:34.2]} 18... h5 {[%clk 0:00:35.8]} 19. Bxg4 {[%clk
0:01:10.2]} 19... hxg4 {[%clk 0:00:35.7]} 20. Qg5 {[%clk 0:01:08.1]} 20... Qh7
{[%clk 0:00:35.4]} 21. Bd2 {[%clk 0:00:56]} 21... f5 {[%clk 0:00:31.4]} 22. g3
{[%clk 0:00:42.2]} 22... Rf6 {[%clk 0:00:30.4]} 23. Qh4 {[%clk 0:00:40]} 23...
Qg6 {[%clk 0:00:26.3]} 24. Bf4 {[%clk 0:00:33.5]} 24... Rc8 {[%clk 0:00:20.7]}
25. c3 {[%clk 0:00:31.8]} 25... a6 {[%clk 0:00:21]} 26. Nd4 {[%clk 0:00:31.9]}
26... Kf7 {[%clk 0:00:21.2]} 27. Ng2 {[%clk 0:00:28.1]} 27... Nc7 {[%clk
0:00:20.4]} 28. Nxc6 {[%clk 0:00:20.8]} 28... Rxc6 {[%clk 0:00:19.9]} 29. Rd7+
{[%clk 0:00:19.3]} 29... Kg8 {[%clk 0:00:20.4]} 30. Rxc7 {[%clk 0:00:17.2]}
30... R6xc7 {[%clk 0:00:20.3]} 31. Bxc7 {[%clk 0:00:18.1]} 31... Rxc7 {[%clk
0:00:21.2]} 32. Qd8+ {[%clk 0:00:18]} 32... Kh7 {[%clk 0:00:21.6]} 33. Qxc7
{[%clk 0:00:17.9]} 33... Qh6 {[%clk 0:00:16.9]} 34. Qf4 {[%clk 0:00:16.8]} 34...
Qe6 {[%clk 0:00:13.7]} 35. Ne3 {[%clk 0:00:16.5]} 35... g6 {[%clk 0:00:13.9]}
36. Kg2 {[%clk 0:00:14.8]} 1-0

[Event "*** Titled Tuesday Blitz"]
[Site "Chess.com"]
[Date "2020.10.27"]
[Round "2"]
[White "maxip32"]
[Black "AntonovaNadezhda"]
[Result "1-0"]
[WhiteElo "2416"]
[BlackElo "2113"]
[TimeControl "180+1"]
[EndTime "10:17:45 PDT"]
[Termination "maxip32 won by checkmate"]

1. e4 {[%clk 0:03:00.9]} 1... c5 {[%clk 0:02:59.7]} 2. Nf3 {[%clk 0:03:00.5]}
2... d6 {[%clk 0:02:59.8]} 3. d4 {[%clk 0:02:58.2]} 3... cxd4 {[%clk 0:03:00.3]}
4. Qxd4 {[%clk 0:02:59]} 4... Nf6 {[%clk 0:02:59.7]} 5. c4 {[%clk 0:02:57.6]}
5... Nc6 {[%clk 0:02:50.1]} 6. Qe3 {[%clk 0:02:57.5]} 6... Bg4 {[%clk
0:02:45.3]} 7. h3 {[%clk 0:02:53.4]} 7... Bxf3 {[%clk 0:02:43.5]} 8. Qxf3 {[%clk
0:02:54.3]} 8... g6 {[%clk 0:02:35.6]} 9. Nc3 {[%clk 0:02:52.8]} 9... Bg7 {[%clk
0:02:35.4]} 10. Be2 {[%clk 0:02:52.7]} 10... O-O {[%clk 0:02:34.6]} 11. O-O
{[%clk 0:02:37]} 11... Nd4 {[%clk 0:02:32.9]} 12. Qd3 {[%clk 0:02:34.9]} 12...
Nd7 {[%clk 0:02:32.4]} 13. Bd1 {[%clk 0:01:51.6]} 13... Ne5 {[%clk 0:02:25.4]}
14. Qg3 {[%clk 0:01:37.9]} 14... Nxc4 {[%clk 0:02:23.4]} 15. b3 {[%clk
0:01:31.5]} 15... Ne5 {[%clk 0:02:14.7]} 16. f4 {[%clk 0:01:26.3]} 16... Nec6
{[%clk 0:02:10.1]} 17. Bb2 {[%clk 0:01:26.2]} 17... Rc8 {[%clk 0:01:50.1]} 18.
Kh1 {[%clk 0:01:16.7]} 18... a6 {[%clk 0:01:42.1]} 19. Bg4 {[%clk 0:01:16.4]}
19... e6 {[%clk 0:01:40]} 20. Rad1 {[%clk 0:01:14.4]} 20... Bf6 {[%clk
0:01:17.7]} 21. Qe3 {[%clk 0:01:07.2]} 21... Qc7 {[%clk 0:00:59.7]} 22. Rc1
{[%clk 0:01:02.2]} 22... Qa5 {[%clk 0:00:41.2]} 23. Rfd1 {[%clk 0:00:57.9]}
23... Bg7 {[%clk 0:00:35.9]} 24. Rd2 {[%clk 0:00:50.1]} 24... Rfe8 {[%clk
0:00:32]} 25. Rcd1 {[%clk 0:00:45.4]} 25... f5 {[%clk 0:00:29.4]} 26. Bf3 {[%clk
0:00:39.6]} 26... Nxf3 {[%clk 0:00:24.4]} 27. gxf3 {[%clk 0:00:32.6]} 27... Bf8
{[%clk 0:00:15.6]} 28. Na4 {[%clk 0:00:32]} 28... b5 {[%clk 0:00:10]} 29. Nb6
{[%clk 0:00:26.5]} 29... Rb8 {[%clk 0:00:08.6]} 30. Nd7 {[%clk 0:00:26.6]} 30...
Rbd8 {[%clk 0:00:05]} 31. Nxf8 {[%clk 0:00:26.6]} 31... Rxf8 {[%clk 0:00:05.5]}
32. Rxd6 {[%clk 0:00:26.6]} 32... Rxd6 {[%clk 0:00:05.5]} 33. Rxd6 {[%clk
0:00:27.5]} 33... Qxa2 {[%clk 0:00:04]} 34. Qc3 {[%clk 0:00:25.7]} 34... Qb1+
{[%clk 0:00:03.4]} 35. Kg2 {[%clk 0:00:25.4]} 35... Rf7 {[%clk 0:00:01.9]} 36.
Qh8# {[%clk 0:00:24.6]} 1-0